fUSD/lending_fUSD_20241121
["ID","MTS","AMOUNT","RATE_DAILY","PERIOD"]
[342871340,1732191042983,-500.0,0.00041095,18]
[342871341,1732191042993,-500.0,0.00041095,18]
[342871342,1732191043002,-856.19,0.00041095,18]
[342871343,1732191043011,-683.73,0.00041095,18]
[342871344,1732191043021,-817.02,0.00041095,18]
[342871345,1732191043031,-500.0,0.00041095,18]
[342871346,1732191043040,-500.0,0.00041095,18]
[342871347,1732191043050,-580.89,0.00041095,18]
[342871348,1732191043060,-1756.0,0.00041095,18]
[342871349,1732191043069,-795.45,0.00041095,18]
[342871350,1732191043078,-500.0,0.00041095,18]
[342871352,1732191043089,-500.0,0.00041095,18]
[342871353,1732191043098,-620.67,0.00041095,18]
[342871354,1732191043107,-944.31,0.00041095,18]
[342871355,1732191043116,-500.0,0.00041095,18]
[342871356,1732191043125,-500.0,0.00041095,18]
[342871357,1732191043135,-1408.81,0.00041095,18]
[342871359,1732191043144,-500.0,0.00041095,18]
[342871360,1732191043153,-1371.35,0.00041095,18]
[342871361,1732191043164,-500.0,0.00041095,18]
[342871362,1732191043173,-500.0,0.00041095,18]
[342871363,1732191043182,-500.0,0.00041095,18]
[342871364,1732191043191,-964.63,0.00041095,18]
[342871365,1732191043200,-511.19,0.00041095,18]
[342871366,1732191043210,-500.0,0.00041095,18]
[342871368,1732191043219,-3814.88,0.00041095,18]
[342871371,1732191043230,-500.0,0.00041095,18]
[342871375,1732191043239,-522.87,0.00041095,18]
[342871379,1732191043249,-500.0,0.00041095,18]
[342871382,1732191043258,-500.0,0.00041095,18]
[342871385,1732191043270,-735.78,0.00041095,18]
[342871388,1732191043282,-627.27,0.00041095,18]
[342871391,1732191043291,-920.01,0.00041095,18]
[342871393,1732191043299,-500.0,0.00041095,18]
[342871395,1732191043308,-599.89,0.00041095,18]
[342871396,1732191043318,-500.0,0.00041095,18]
[342871397,1732191043328,-928.61,0.00041095,18]
[342871398,1732191043340,-612.04,0.00041095,18]
[342871399,1732191043349,-500.0,0.00041095,18]
[342871400,1732191043361,-500.0,0.00041095,18]
[342871401,1732191043371,-500.0,0.00041095,18]
[342871402,1732191043380,-509.02,0.00041095,18]
[342871403,1732191043389,-1132.05,0.00041095,18]
[342871404,1732191043398,-1695.31,0.00041095,18]
[342871405,1732191043406,-966.51,0.00041095,18]
[342871406,1732191043416,-599.85,0.00041095,18]
[342871407,1732191043425,-500.0,0.00041095,18]
[342871408,1732191043435,-500.0,0.00041095,18]
[342871410,1732191043445,-4036.02,0.00041095,18]
[342871411,1732191043453,-500.0,0.00041095,18]
[342871412,1732191043462,-500.0,0.00041095,18]
[342871413,1732191043551,-675.03,0.00041095,18]
[342871414,1732191043560,-500.0,0.00041095,18]
[342871415,1732191043569,-500.0,0.00041095,18]
[342871416,1732191043579,-500.0,0.00041095,18]
[342871417,1732191043589,-871.28,0.00041095,18]
[342871418,1732191043597,-500.0,0.00041095,18]
[342871419,1732191043606,-500.0,0.00041095,18]
[342871420,1732191043615,-579.61918785,0.00041095,18]
[342871421,1732191043624,-500.0,0.00041095,18]
[342871422,1732191043633,-990.2,0.00041095,18]
[342871423,1732191043642,-586.3,0.00041095,18]
[342871424,1732191043650,-500.0,0.00041095,18]
[342871425,1732191043659,-500.0,0.00041095,18]
[342871426,1732191043668,-500.0,0.00041095,18]
[342871427,1732191043677,-985.51,0.00041095,18]
[342871428,1732191043686,-755.06,0.00041095,18]
[342871429,1732191043695,-500.0,0.00041095,18]
[342871430,1732191043704,-956.48,0.00041095,18]
[342871431,1732191043712,-864.39,0.00041095,18]
[342871432,1732191043721,-500.0,0.00041095,18]
[342871433,1732191043731,-2647.96,0.00041095,18]
[342871434,1732191043740,-2053.95,0.00041095,18]
[342871435,1732191043749,-673.32,0.00041095,18]
[342871436,1732191043758,-500.0,0.00041095,18]
[342871437,1732191043768,-1224.59,0.00041095,18]
[342871438,1732191043776,-987.09,0.00041095,18]
[342871439,1732191043785,-568.31,0.00041095,18]
[342871440,1732191043794,-500.0,0.00041095,18]
[342871441,1732191043803,-931.96,0.00041095,18]
[342871442,1732191043812,-888.57,0.00041095,18]
[342871443,1732191043821,-500.0,0.00041095,18]
[342871444,1732191043831,-3336.09,0.00041095,18]
[342871445,1732191043841,-500.0,0.00041095,18]
[342871446,1732191043851,-1037.23,0.00041095,18]
[342871447,1732191043860,-671.17,0.00041095,18]
[342871448,1732191043869,-1790.53,0.00041095,18]
[342871449,1732191043878,-500.0,0.00041095,18]
[342871450,1732191043888,-500.0,0.00041095,18]
[342871451,1732191043897,-1112.73,0.00041095,18]
[342871452,1732191043906,-500.0,0.00041095,18]
[342871453,1732191043915,-500.0,0.00041095,18]
[342871454,1732191043925,-500.0,0.00041095,18]
[342871455,1732191043935,-797.91,0.00041095,18]
[342871456,1732191043944,-602.51,0.00041095,18]
[342871457,1732191043953,-500.0,0.00041095,18]
[342871459,1732191043962,-500.0,0.00041095,18]
[342871460,1732191043971,-500.0,0.00041095,18]
[342871462,1732191043980,-500.0,0.00041095,18]
[342871464,1732191043989,-500.0,0.00041095,18]
[342871466,1732191043998,-500.0,0.00041095,18]
[342871468,1732191044007,-1931.79,0.00041095,18]
[342871470,1732191044016,-674.86,0.00041095,18]
[342871472,1732191044025,-1398.71,0.00041095,18]
[342871474,1732191044035,-629.42,0.00041095,18]
[342871476,1732191044044,-510.12,0.00041095,18]
[342871478,1732191044054,-500.0,0.00041095,18]
[342871480,1732191044063,-500.0,0.00041095,18]
[342871482,1732191044072,-500.0,0.00041095,18]
[342871484,1732191044083,-500.0,0.00041095,18]
[342871486,1732191044093,-500.0,0.00041095,18]
[342871488,1732191044102,-1345.63,0.00041095,18]
[342871490,1732191044111,-1023.16,0.00041095,18]
[342871492,1732191044120,-1000.0,0.00041095,18]
[342871494,1732191044129,-502.86069322,0.00041095,18]
[342871496,1732191044138,-5477.54,0.00041095,18]
[342871498,1732191044148,-500.0,0.00041095,18]
[342871500,1732191044157,-500.0,0.00041095,18]
[342871502,1732191044166,-500.0,0.00041095,18]
[342871504,1732191044175,-1034.41,0.00041095,18]
[342871506,1732191044184,-646.67,0.00041095,18]
[342871508,1732191044193,-500.0,0.00041095,18]
[342871510,1732191044202,-500.0,0.00041095,18]
[342871512,1732191044215,-500.0,0.00041095,18]
[342871514,1732191044224,-3350.27,0.00041095,18]
[342871516,1732191044233,-500.0,0.00041095,18]
[342871518,1732191044242,-500.0,0.00041095,18]
[342871520,1732191044251,-951.56,0.00041095,18]
[342871522,1732191044260,-1599.89,0.00041095,18]
[342871524,1732191044277,-500.0,0.00041095,18]
[342871526,1732191044290,-791.81,0.00041095,18]
[342871528,1732191044299,-500.0,0.00041095,18]
[342871530,1732191044308,-624.01,0.00041095,18]
[342871532,1732191044318,-500.0,0.00041095,18]
[342871534,1732191044327,-500.0,0.00041095,18]
[342871536,1732191044338,-2280.61,0.00041095,18]
[342871538,1732191044347,-500.0,0.00041095,18]
[342871540,1732191044356,-1385.12,0.00041095,18]
[342871542,1732191044366,-507.86000114,0.00041095,18]
[342871544,1732191044375,-904.44,0.00041095,18]
[342871546,1732191044384,-1939.74,0.00041095,18]
[342871548,1732191044393,-200.0,0.00041095,10]
[342871550,1732191044402,-1411.9,0.00041095,18]
[342871552,1732191044411,-500.0,0.00041095,18]
[342871554,1732191044419,-534.21,0.00041095,18]
[342871556,1732191044428,-500.0,0.00041095,18]
[342871557,1732191044438,-500.0,0.00041095,18]
[342871558,1732191044446,-54170.23,0.00041095,5]
[342871559,1732191044455,-507.95,0.00041095,18]
[342871560,1732191044464,-500.0,0.00041095,18]
[342871562,1732191044474,-500.0,0.00041095,18]
[342871563,1732191044483,-2457.28,0.00041095,18]
[342871564,1732191044492,-3154.79,0.00041095,18]
[342871565,1732191044501,-3395.77,0.00041095,18]
[342871566,1732191044510,-894.23,0.00041095,18]
[342871567,1732191044519,-500.0,0.00041095,18]
[342871568,1732191044529,-500.0,0.00041095,18]
[342871569,1732191044538,-500.0,0.00041095,18]
[342871570,1732191044547,-899.9,0.00041095,18]
[342871571,1732191044557,-1250.0,0.00041095,18]
[342871572,1732191044566,-500.0,0.00041095,18]
[342871573,1732191044576,-500.0,0.00041095,18]
[342871574,1732191044588,-500.0,0.00041095,18]
[342871575,1732191044597,-1220.62,0.00041095,18]
[342871576,1732191044606,-500.0,0.00041095,18]
[342871577,1732191044615,-1505.36,0.00041095,18]
[342871578,1732191044625,-500.0,0.00041095,18]
[342871579,1732191044635,-1052.65,0.00041095,18]
[342871580,1732191044644,-500.0,0.00041095,18]
[342871581,1732191044654,-1308.23,0.00041095,18]
[342871582,1732191044663,-14798.35,0.00041095,18]
[342871583,1732191044673,-500.0,0.00041095,18]
[342871584,1732191044682,-585.17,0.00041095,18]
[342871585,1732191044691,-1214.68,0.00041095,18]
[342871586,1732191044701,-500.0,0.00041095,18]
[342871587,1732191044711,-500.0,0.00041095,18]
[342871588,1732191044720,-1373.7,0.00041095,18]
[342871589,1732191044730,-500.0,0.00041095,18]
[342871590,1732191044739,-281.44,0.00041095,7]
[342871591,1732191044749,-594.91156547,0.00041095,18]
[342871592,1732191044758,-417.19025687,0.00041095,18]
[342871593,1732191044767,-500.0,0.00041095,18]
[342871594,1732191044777,-2059.53,0.00041095,18]
[342871595,1732191044786,-500.0,0.00041095,18]
[342871596,1732191044795,-500.0,0.00041095,18]
[342871597,1732191044805,-1406.26,0.00041095,18]
[342871598,1732191044814,-1663.99,0.00041095,18]
[342871599,1732191044823,-2134.17,0.00041095,18]
[342871600,1732191044833,-500.0,0.00041095,18]
[342871601,1732191044842,-1947.29,0.00041095,18]
[342871602,1732191044851,-500.0,0.00041095,18]
[342871603,1732191044861,-552.13,0.00041095,18]
[342871604,1732191044870,-2092.26,0.00041095,18]
[342871605,1732191044880,-3350.24,0.00041095,18]
[342871606,1732191044889,-524.8,0.00041095,18]
[342871607,1732191044899,-9945.17,0.00041095,18]
[342871608,1732191044908,-507.0,0.00041095,18]
[342871609,1732191044918,-500.0,0.00041095,18]
[342871610,1732191044927,-47253.13,0.00041095,18]
[342871611,1732191044936,-1295.33,0.00041095,18]
[342871612,1732191044946,-525.81,0.00041095,18]
[342871613,1732191044955,-926.88,0.00041095,18]
[342871614,1732191044965,-861.54,0.00041095,18]
[342871615,1732191044974,-500.0,0.00041095,18]
[342871616,1732191044983,-7223.51,0.00041095,18]
[342871617,1732191044992,-1922.86,0.00041095,18]
[342871618,1732191045002,-500.0,0.00041095,18]
[342871619,1732191045011,-2342.03,0.00041095,18]
[342871620,1732191045020,-415.39344357,0.00041095,18]
[342871621,1732191045030,-3228.25,0.00041095,18]
[342871622,1732191045039,-500.0,0.00041095,18]
[342871623,1732191045048,-500.0,0.00041095,18]
[342871624,1732191045058,-500.0,0.00041095,18]
[342871625,1732191045067,-500.0,0.00041095,18]
[342871626,1732191045076,-599.94,0.00041095,18]
[342871627,1732191045087,-608.79,0.00041095,18]
[342871628,1732191045097,-1462.98,0.00041095,18]
[342871629,1732191045106,-1423.15,0.00041095,18]
[342871630,1732191045116,-500.0,0.00041095,18]
[342871631,1732191045125,-500.0,0.00041095,18]
[342871632,1732191045134,-500.0,0.00041095,18]
[342871633,1732191045143,-500.0,0.00041095,18]
[342871634,1732191045151,-500.0,0.00041095,18]
[342871635,1732191045160,-1030.0,0.00041095,18]
[342871636,1732191045169,-5402.58,0.00041095,18]
[342871637,1732191045178,-500.0,0.00041095,18]
[342871638,1732191045188,-688.23,0.00041095,18]
[342871639,1732191045198,-505.96,0.00041095,18]
[342871640,1732191045207,-500.0,0.00041095,18]
[342871641,1732191045217,-2642.3,0.00041095,18]
[342871642,1732191045225,-500.0,0.00041095,18]
[342871643,1732191045234,-500.0,0.00041095,18]
[342871644,1732191045243,-811.93,0.00041095,18]
[342871645,1732191045254,-500.0,0.00041095,18]
[342871646,1732191045265,-1585.57,0.00041095,18]
[342871647,1732191045279,-500.0,0.00041095,18]
[342871648,1732191045287,-1261.49,0.00041095,18]
[342871649,1732191045296,-875.91,0.00041095,18]
[342871650,1732191045305,-553.57,0.00041095,18]
[342871651,1732191045314,-500.0,0.00041095,18]
[342871652,1732191045323,-934.75,0.00041095,18]
[342871653,1732191045333,-500.0,0.00041095,18]
[342871654,1732191045342,-1326.44,0.00041095,18]
[342871655,1732191045352,-918.0,0.00041095,18]
[342871656,1732191045361,-500.0,0.00041095,18]
[342871657,1732191045370,-1013.06,0.00041095,18]
[342871658,1732191045379,-1786.58,0.00041095,18]
[342871659,1732191045388,-1103.31,0.00041095,18]
[342871660,1732191045397,-506.12,0.00041095,18]
[342871661,1732191045406,-500.0,0.00041095,18]
[342871662,1732191045415,-500.0,0.00041095,18]
[342871663,1732191045425,-598.61,0.00041095,18]
[342871664,1732191045434,-2129.07,0.00041095,18]
[342871665,1732191045443,-500.0,0.00041095,18]
[342871666,1732191045452,-500.0,0.00041095,18]
[342871667,1732191045461,-500.0,0.00041095,18]
[342871668,1732191045470,-500.0,0.00041095,18]
[342871669,1732191045479,-3261.05,0.00041095,18]
[342871670,1732191045488,-500.0,0.00041095,18]
[342871671,1732191045498,-5158.19,0.00041095,18]
[342871672,1732191045508,-1401.17,0.00041095,18]
[342871673,1732191045517,-1352.8,0.00041095,18]
[342871674,1732191045526,-1136.22,0.00041095,18]
[342871675,1732191045535,-500.0,0.00041095,18]
[342871676,1732191045545,-593.86,0.00041095,18]
[342871677,1732191045554,-1493.18,0.00041095,18]
[342871678,1732191045563,-567.35,0.00041095,18]
[342871679,1732191045573,-500.0,0.00041095,18]
[342871680,1732191045583,-500.0,0.00041095,18]
[342871681,1732191045592,-500.0,0.00041095,18]
[342871682,1732191045601,-500.0,0.00041095,18]
[342871683,1732191045610,-500.0,0.00041095,18]
[342871684,1732191045620,-1351.96,0.00041095,18]
[342871685,1732191045629,-500.0,0.00041095,18]
[342871686,1732191045639,-1147.31,0.00041095,18]
[342871687,1732191045649,-433.66244061,0.00041095,18]
[342871688,1732191045658,-500.0,0.00041095,18]
[342871689,1732191045668,-500.0,0.00041095,18]
[342871690,1732191045677,-500.0,0.00041095,18]
[342871691,1732191045686,-500.0,0.00041095,18]
[342871692,1732191045695,-500.0,0.00041095,18]
[342871693,1732191045705,-773.85,0.00041095,18]
[342871694,1732191045714,-500.0,0.00041095,18]
[342871695,1732191045723,-1199.73,0.00041095,18]
[342871696,1732191045733,-500.0,0.00041095,18]
[342871697,1732191045742,-2351.77,0.00041095,18]
[342871698,1732191045752,-545.3,0.00041095,18]
[342871699,1732191045761,-500.0,0.00041095,18]
[342871700,1732191045770,-1793.0,0.00041095,18]
[342871701,1732191045780,-858.69,0.00041095,18]
[342871702,1732191045790,-1052.15,0.00041095,18]
[342871703,1732191045799,-798.38,0.00041095,18]
[342871704,1732191045808,-500.0,0.00041095,18]
[342871705,1732191045817,-500.0,0.00041095,18]
[342871706,1732191045827,-553.4,0.00041095,18]
[342871707,1732191045840,-657.68,0.00041095,18]
[342871708,1732191045850,-500.0,0.00041095,18]
[342871709,1732191045859,-500.79761984,0.00041095,18]
[342871710,1732191045868,-2885.1,0.00041095,18]
[342871711,1732191045877,-1089.06,0.00041095,18]
[342871712,1732191045887,-1049.96,0.00041095,18]
[342871713,1732191045896,-919.52,0.00041095,18]
[342871714,1732191045904,-498.67129488,0.00041095,18]
[342871715,1732191045914,-681.87,0.00041095,18]
[342871716,1732191045924,-617.73,0.00041095,18]
[342871717,1732191045933,-500.0,0.00041095,18]
[342871718,1732191045942,-2805.64,0.00041095,18]
[342871719,1732191045952,-1232.85,0.00041095,18]
[342871720,1732191045961,-500.0,0.00041095,18]
[342871721,1732191045970,-500.0,0.00041095,18]
[342871722,1732191045980,-3409.36,0.00041095,18]
[342871723,1732191045989,-627.86,0.00041095,18]
[342871724,1732191045999,-1585.7,0.00041095,18]
[342871725,1732191046008,-500.0,0.00041095,18]
[342871726,1732191046017,-1005.04,0.00041095,18]
[342871727,1732191046027,-7862.91,0.00041095,18]
[342871728,1732191046036,-500.0,0.00041095,18]
[342871729,1732191046045,-542.65,0.00041095,18]
[342871730,1732191046055,-1771.73,0.00041095,18]
[342871731,1732191046064,-500.0,0.00041095,18]
[342871732,1732191046073,-4270.9,0.00041095,18]
[342871733,1732191046086,-500.0,0.00041095,18]
[342871734,1732191046095,-1246.17,0.00041095,18]
[342871735,1732191046105,-1493.62,0.00041095,18]
[342871736,1732191046114,-1470.35,0.00041095,18]
[342871737,1732191046123,-884.87,0.00041095,18]
[342871739,1732191046133,-858.23,0.00041095,18]
[342871740,1732191046143,-2000.0,0.00041095,30]
[342871741,1732191046152,-658.39,0.00041095,18]
[342871742,1732191046161,-500.0,0.00041095,18]
[342871743,1732191046171,-500.0,0.00041095,18]
[342871744,1732191046182,-1081.78,0.00041095,18]
[342871745,1732191046191,-500.0,0.00041095,18]
[342871746,1732191046201,-500.0,0.00041095,18]
[342871747,1732191046210,-500.0,0.00041095,18]
[342871748,1732191046220,-1274.32,0.00041095,18]
[342871749,1732191046228,-552.35,0.00041095,18]
[342871750,1732191046237,-500.0,0.00041095,18]
[342871751,1732191046247,-500.0,0.00041095,18]
[342871752,1732191046255,-500.0,0.00041095,18]
[342871753,1732191046264,-500.0,0.00041095,18]
[342871754,1732191046273,-499.63796091,0.00041095,18]
[342871755,1732191046286,-1089.06,0.00041095,18]
[342871756,1732191046294,-500.0,0.00041095,18]
[342871757,1732191046303,-1466.43,0.00041095,18]
[342871758,1732191046313,-500.0,0.00041095,18]
[342871759,1732191046323,-500.0,0.00041095,18]
[342871760,1732191046334,-3365.8,0.00041095,18]
[342871761,1732191046343,-500.0,0.00041095,18]
[342871762,1732191046351,-500.0,0.00041095,18]
[342871763,1732191046362,-3585.25,0.00041095,18]
[342871764,1732191046372,-858.17,0.00041095,18]
[342871765,1732191046381,-500.0,0.00041095,18]
[342871766,1732191046390,-1748.97,0.00041095,18]
[342871767,1732191046399,-500.0,0.00041095,18]
[342871768,1732191046409,-1564.38,0.00041095,18]
[342871769,1732191046420,-500.0,0.00041095,18]
[342871770,1732191046430,-500.0,0.00041095,18]
[342871771,1732191046439,-657.23,0.00041095,18]
[342871772,1732191046449,-1071.71,0.00041095,18]
[342871773,1732191046458,-1890.95,0.00041095,18]
[342871774,1732191046467,-500.0,0.00041095,18]
[342871775,1732191046476,-896.89,0.00041095,18]
[342871776,1732191046486,-500.0,0.00041095,18]
[342871777,1732191046494,-1500.0,0.00041095,120]
[342871778,1732191046503,-1353.47,0.00041095,18]
[342871779,1732191046512,-565.65,0.00041095,18]
[342871780,1732191046521,-500.0,0.00041095,18]
[342871781,1732191046530,-1702.36,0.00041095,18]
[342871782,1732191046540,-764.9,0.00041095,18]
[342871783,1732191046549,-1897.51,0.00041095,18]
[342871784,1732191046558,-1131.28,0.00041095,18]
[342871785,1732191046567,-500.0,0.00041095,18]
[342871786,1732191046576,-3234.69,0.00041095,18]
[342871787,1732191046588,-500.0,0.00041095,18]
[342871788,1732191046597,-500.0,0.00041095,18]
[342871789,1732191046606,-500.0,0.00041095,18]
[342871790,1732191046615,-1141.75,0.00041095,18]
[342871791,1732191046624,-502.58053083,0.00041095,18]
[342871792,1732191046633,-500.0,0.00041095,18]
[342871793,1732191046643,-1881.36,0.00041095,18]
[342871794,1732191046652,-500.0,0.00041095,18]
[342871795,1732191046661,-500.0,0.00041095,18]
[342871797,1732191046670,-701.88,0.00041095,18]
[342871798,1732191046679,-1786.22,0.00041095,18]
[342871799,1732191046688,-917.21,0.00041095,18]
[342871800,1732191046698,-522.5,0.00041095,18]
[342871801,1732191046707,-5276.31,0.00041095,18]
[342871802,1732191046716,-667.39,0.00041095,18]
[342871803,1732191046726,-695.5,0.00041095,18]
[342871804,1732191046736,-1083.07,0.00041095,18]
[342871805,1732191046745,-947.55,0.00041095,18]
[342871806,1732191046754,-500.0,0.00041095,18]
[342871807,1732191046763,-1153.93,0.00041095,18]
[342871808,1732191046772,-1128.35,0.00041095,18]
[342871809,1732191046781,-500.0,0.00041095,18]
[342871810,1732191046790,-5493.63,0.00041095,18]
[342871811,1732191046799,-500.0,0.00041095,18]
[342871812,1732191046809,-531.95,0.00041095,18]
[342871813,1732191046819,-500.0,0.00041095,18]
[342871814,1732191046829,-1181.43,0.00041095,18]
[342871815,1732191046842,-28642.13,0.00041095,18]
[342871816,1732191046851,-1117.88,0.00041095,18]
[342871817,1732191046860,-1859.5,0.00041095,18]
[342871818,1732191046869,-500.0,0.00041095,18]
[342871819,1732191046879,-1554.92,0.00041095,18]
[342871820,1732191046888,-500.0,0.00041095,18]
[342871821,1732191046896,-772.67,0.00041095,18]
[342871822,1732191046905,-500.0,0.00041095,18]
[342871823,1732191046915,-1091.78,0.00041095,18]
[342871824,1732191046924,-4438.03,0.00041095,18]
[342871825,1732191046934,-500.0,0.00041095,18]
[342871826,1732191046943,-3310.48,0.00041095,18]
[342871827,1732191046953,-1442.82,0.00041095,18]
[342871828,1732191046962,-1211.34,0.00041095,18]
[342871829,1732191046971,-780.76,0.00041095,18]
[342871830,1732191046981,-500.0,0.00041095,18]
[342871831,1732191046990,-500.0,0.00041095,18]
[342871832,1732191047000,-500.0,0.00041095,18]
[342871833,1732191047009,-500.0,0.00041095,18]
[342871834,1732191047019,-180.87678716,0.00041095,18]
[342871835,1732191047028,-500.0,0.00041095,18]
[342871836,1732191047037,-2703.44,0.00041095,18]
[342871837,1732191047046,-500.0,0.00041095,18]
[342871838,1732191047055,-1087.66,0.00041095,18]
[342871839,1732191047064,-500.0,0.00041095,18]
[342871840,1732191047074,-501.51020522,0.00041095,18]
[342871841,1732191047084,-677.74,0.00041095,18]
[342871842,1732191047093,-500.0,0.00041095,18]
[342871843,1732191047102,-500.0,0.00041095,18]
[342871844,1732191047111,-500.0,0.00041095,18]
[342871845,1732191047120,-500.0,0.00041095,18]
[342871846,1732191047130,-1473.9,0.00041095,18]
[342871847,1732191047138,-500.0,0.00041095,18]
[342871848,1732191047148,-500.0,0.00041095,18]
[342871849,1732191047157,-500.0,0.00041095,18]
[342871850,1732191047166,-1559.25,0.00041095,18]
[342871851,1732191047175,-784.71,0.00041095,18]
[342871852,1732191047184,-3822.14,0.00041095,18]
[342871853,1732191047192,-500.0,0.00041095,18]
[342871854,1732191047201,-500.0,0.00041095,18]
[342871855,1732191047210,-863.55,0.00041095,18]
[342871856,1732191047219,-500.0,0.00041095,18]
[342871857,1732191047229,-2128.78,0.00041095,18]
[342871858,1732191047238,-2107.31,0.00041095,18]
[342871859,1732191047248,-500.0,0.00041095,18]
[342871860,1732191047257,-1350.13,0.00041095,18]
[342871861,1732191047267,-1838.09,0.00041095,18]
[342871862,1732191047276,-500.0,0.00041095,18]
[342871863,1732191047289,-500.0,0.00041095,18]
[342871864,1732191047299,-602.54301698,0.00041095,18]
[342871865,1732191047310,-390.21996213,0.00041095,18]
[342871866,1732191047321,-500.0,0.00041095,18]
[342871867,1732191047333,-500.0,0.00041095,18]
[342871868,1732191047343,-3867.41,0.00041095,18]
[342871869,1732191047353,-500.0,0.00041095,18]
[342871870,1732191047367,-500.0,0.00041095,18]
[342871871,1732191047382,-515.00525348,0.00041095,18]
[342871872,1732191047392,-2697.41,0.00041095,18]
[342871873,1732191047402,-500.0,0.00041095,18]
[342871874,1732191047411,-718.71,0.00041095,18]
[342871875,1732191047421,-500.0,0.00041095,18]
[342871876,1732191047430,-3295.78,0.00041095,18]
[342871877,1732191047439,-500.0,0.00041095,18]
[342871878,1732191047449,-2926.81,0.00041095,18]
[342871879,1732191047459,-500.0,0.00041095,18]
[342871880,1732191047469,-500.0,0.00041095,18]
[342871881,1732191047478,-577.22,0.00041095,18]
[342871882,1732191047487,-1064.06,0.00041095,18]
[342871883,1732191047496,-500.0,0.00041095,18]
[342871884,1732191047505,-500.0,0.00041095,18]
[342871885,1732191047514,-500.0,0.00041095,18]
[342871886,1732191047524,-1197.49,0.00041095,18]
[342871887,1732191047533,-500.0,0.00041095,18]
[342871888,1732191047542,-500.0,0.00041095,18]
[342871889,1732191047637,-500.0,0.00041095,18]
[342871890,1732191047687,-294.82,0.00041095,18]
[342871891,1732191047697,-1009.74,0.00041095,18]
[342871892,1732191047707,-4330.34,0.00041095,18]
[342871893,1732191047716,-1471.96,0.00041095,18]
[342871894,1732191047727,-6560.59,0.00041095,18]
[342871895,1732191047736,-3927.28,0.00041095,18]
[342871896,1732191047746,-500.0,0.00041095,18]
[342871897,1732191047755,-1771.65,0.00041095,18]
[342871898,1732191047765,-2694.07,0.00041095,18]
[342871899,1732191047775,-1012.14,0.00041095,18]
[342871900,1732191047785,-500.0,0.00041095,18]
[342871901,1732191047795,-712.49,0.00041095,18]
[342871902,1732191047805,-505.93,0.00041095,18]
[342871903,1732191047815,-500.0,0.00041095,18]
[342871904,1732191047825,-500.0,0.00041095,18]
[342871905,1732191047838,-1933.02,0.00041095,18]
[342871906,1732191047848,-684.26,0.00041095,18]
[342871907,1732191047858,-890.59,0.00041095,18]
[342871908,1732191047868,-1383.85,0.00041095,18]
[342871909,1732191047877,-500.0,0.00041095,18]
[342871910,1732191047888,-500.0,0.00041095,18]
[342871911,1732191047898,-546.92,0.00041095,18]
[342871912,1732191047908,-548.79,0.00041095,18]
[342871913,1732191047917,-500.0,0.00041095,18]